Cogmind - Beta 14 @@@ ROGUE MODE // 2024.09.21 @ 22:42:27 Player: Dull Result: Destroyed by 36-KYS(R) with Subdweller Laser Performance ------------- Evolutions (0) 0 Regions Visited (2) 400 Robots Destroyed (47) 235 Value Destroyed (1190) 1190 Prototype IDs (2) 40 Alien Tech Used (0) 0 Bonus (0) 0 TOTAL SCORE: 1865 Bonus ------- None Cogmind --------- Core Integrity 0/250 Matter 272/300 Energy 80/100 System Corruption 0% Temperature Cool (6) Movement Rolling (179) Ox7 Location -10/Subcaves Parts ------- > --- POWER (1) -------- Subdweller Power Source > --- PROPULSION (2) --- Wheel Subdweller Monowheel > --- UTILITY (2) ------ Humpback > --- WEAPON (2) ------- Subdweller Laser Subdweller Machine Gun > --- INVENTORY (35) --- Subdweller Power Source Subdweller Monowheel Flightbrick Subdweller Optics Scrap Shield Scrap Shield Subdweller Machine Gun Subdweller Machine Gun Mining Laser Peak State ------------ > --- POWER ------------ Light Ion Engine > --- PROPULSION ------- Light Treads Spiked Treads > --- UTILITY ---------- Scrap Shield > --- WEAPON ----------- Subdweller Machine Gun Makeshift Shrapnel Gun > --- INVENTORY -------- Flightbrick Mining Laser [Rating: 17] Favorites ----------- Power Light Ion Engine Engine Light Ion Engine Propulsion Light Treads Treads Light Treads Leg Aluminum Leg Wheel Subdweller Monowheel Utility Scrap Shield Device Improved Heat Sink Storage Large Storage Unit Protection Scrap Shield Weapon Heavy Assault Rifle Energy Gun Subdweller Laser Ballistic Gun Heavy Assault Rifle Launcher Rocket Launcher Special Weapon Mining Laser Build | -11 -10 -10 ------- Run | Yrd Mat Sub Slots Evolved . | . . . Power . | . . . Propulsion . | . . . Utility . | . . . Weapon . | . . . Parts Attached 50 | 3 22 25 Power 5 | . 2 3 Engine 5 | . 2 3 Core . | . . . Reactor . | . . . Propulsion 15 | 2 6 7 Treads 13 | 2 6 5 Leg . | . . . Wheel 2 | . . 2 Hover . | . . . Flight . | . . . Utility 6 | 1 3 2 Device 2 | 1 1 . Storage 2 | . 1 1 Processor . | . . . Hackware . | . . . Protection 2 | . 1 1 Artifact . | . . . Weapon 24 | . 11 13 Energy Gun 1 | . . 1 Energy Cannon . | . . . Ballistic Gun 19 | . 9 10 Ballistic Cannon . | . . . Launcher 2 | . 2 . Special Weapon 2 | . . 2 Impact Weapon . | . . . Slashing Weapon . | . . . Piercing Weapon . | . . . Special Melee Weapon . | . . . Unidentified Prototypes . | . . . Parts Lost 5 | . 1 4 Power 2 | . . 2 Propulsion . | . . . Utility 1 | . 1 . Weapon 2 | . . 2 Highest Loss Streak 2 | . 1 2 To Critical Strikes . | . . . Average Slot Usage (%) 89 | . 99 85 Engine 13 | . 14 13 Treads 25 | . 27 24 Wheel 2 | . . 3 Device 2 | . 7 . Storage 7 | . 14 4 Protection 8 | . 6 9 Energy Gun 1 | . . 2 Ballistic Gun 25 | . 27 24 Peak Build Rating 17 | 9 13 17 Average Rating 13 | 6 11 14 On Entrance 9 | 6 9 13 Naked Turns . | . . . Heaviest Build 213 | 15 35 213 Greatest Support 40 | 40 40 40 Greatest Overweight (x) 10 | . 1 10 Average Overweight (x) 1 | . . 1 Largest Inventory Capacity 35 | 8 15 35 Average Capacity 14 | 8 14 14 Most Carried 15 | 6 15 15 Average Carried 9 | 4 13 7 Final Capacity 35 | 8 15 35 Final Carried 15 | 3 15 14 Class Distribution -------------------- 79% | Mutant 20% | Hauler-Mutant Dominant Class ---------------- Mutant | -10/Materials Mutant | -10/Subcaves Resources | -11 -10 -10 ----------- Run | Yrd Mat Sub Matter Collected 1334 | 220 509 605 Remotely . | . . . Salvage Created 1232 | 99 629 504 Parts 103 | 9 52 42 Haulers Intercepted 2 | . 2 . Recyclers Shooed 2 | . 2 . Parts Field Recycled . | . . . Retrieved Matter . | . . . Parts Self-Destructed 9 | . . 9 Prevented . | . . . Kills | -11 -10 -10 ------- Run | Yrd Mat Sub Combat Hostiles Destroyed 37 | . 19 18 Guns 32 | . 14 18 AOE 5 | . 5 . Classes Destroyed 9 | 2 4 3 Tunneler 2 | 2 . . Hauler 2 | . 2 . Recycler 1 | 1 . . Turret 2 | . . 2 Watcher 3 | . 3 . Swarmer 13 | . 9 4 Grunt 10 | . 10 . Sentry 1 | . . 1 Subdweller 13 | . . 13 Best Kill Streak 6 | 2 6 4 Combat Bots Only 6 | . 6 4 Max Kills in Single Turn 2 | 1 2 1 Gunslinging . | . . . Exploded 2 | . 2 . Melee . | . . . Uniques/NPCs Destroyed . | . . . Combat | -11 -10 -10 -------- Run | Yrd Mat Sub Hostile Shots Fired 268 | . 68 200 Missed 94 | . 21 73 Damage Taken 2254 | . 573 1681 Core 260 | . 28 232 Absorbed by Shields . | . . . Core Remaining (%) 100 | 100 . . Volleys Fired 161 | 9 47 105 Largest 2 | 2 2 2 Hottest 100 | 90 46 100 Shots Fired 285 | 18 86 181 Gun 256 | 18 82 156 Cannon . | . . . Launcher 4 | . 4 . Special 25 | . . 25 Kinetic 212 | . 82 130 Thermal 60 | 9 . 51 Explosive 4 | . 4 . Electromagnetic 9 | 9 . . Robot Hit Streak 21 | 5 13 21 Robot Miss Streak 6 | 1 3 6 Penetration Max . | . . . Secondary Targets 2 | . 1 1 Max Gunslinging Chain 1 | . 1 1 Shots Hit Robots 164 | 12 56 96 Core Hits 71 | 4 27 40 Critical Kills 2 | . 1 1 Critical Parts Destroyed 1 | . . 1 Critical Strikes 5 | . 1 4 Destroy 5 | . 1 4 Melee Attacks . | . . . Impact . | . . . Slashing . | . . . Piercing . | . . . Sneak Attacks . | . . . Combat Hostiles . | . . . Follow-up Attacks . | . . . Damage Inflicted 3355 | 154 1169 2032 Guns 3128 | 154 942 2032 Cannons . | . . . Explosions 227 | . 227 . Melee . | . . . Ramming . | . . . Kinetic 2646 | . 942 1704 Thermal 427 | 99 . 328 Explosive 227 | . 227 . Electromagnetic 55 | 55 . . Impact . | . . . Slashing . | . . . Piercing . | . . . Highest Corruption . | . . . Average Corruption . | . . . Corruption Purged . | . . . Corruption Blocked . | . . . Overload Shots . | . . . Overflow Damage 18 | . 18 . Projectiles . | . . . Explosions 18 | . 18 . Melee . | . . . Knockbacks . | . . . Impact . | . . . Kinetic . | . . . Secondary . | . . . Self-Inflicted Damage 98 | . 98 . Shots 3 | . 3 . Rammed . | . . . Targets Rammed . | . . . Kicked . | . . . Crushed . | . . . Highest Temperature 210 | 210 45 15 Average Temperature 45 | 89 14 7 Received Heat Transfer 573 | . 183 390 Siege Activations . | . . . Robots Corrupted . | . . . Combat Hostiles . | . . . Parts Fried . | . . . Impact Corruptions . | . . . Robots Melted . | . . . Combat Hostiles . | . . . Parts Melted 1 | . . 1 Heat Transferred 696 | 296 . 400 Parts Sabotaged . | . . . Parts Stolen . | . . . Parts Stripped . | . . . Power Chain Reactions . | . . . Alert | -11 -10 -10 ------- Run | Yrd Mat Sub Peak Influence 381 | 15 381 . Initial 9 | . 9 . Average 159 | 9 168 . Maximum Alert Level 1 | . 1 . Low Security (%) 63 | 100 61 . Level 1 36 | . 38 . Level 2 . | . . . Level 3 . | . . . Level 4 . | . . . Level 5 . | . . . High Security . | . . . Max Security . | . . . Squads Dispatched 4 | . 4 . Investigation 2 | . 2 . Extermination . | . . . Reinforcement 2 | . 2 . Assault . | . . . Garrison . | . . . Intercept . | . . . Searches Triggered . | . . . Construction Impeded . | . . . Haulers Reinforced . | . . . Active Scanning Responses . | . . . Cargo Convoy Interrupts . | . . . Stealth | -11 -10 -10 --------- Run | Yrd Mat Sub Distress Signals 2 | . 2 . Communications Jammed . | . . . Distress Signals . | . . . Times Spotted 51 | . 27 24 Peak Tracking Total 6 | . 6 6 Tactical Retreats 2 | . 1 1 Traps | -11 -10 -10 ------- Run | Yrd Mat Sub Traps Triggered 9 | . 7 2 Indirectly . | . . . Trap Hack Attempts . | . . . Triggered . | . . . Disarmed . | . . . Reprogrammed . | . . . Reused . | . . . Traps Extracted . | . . . Installed . | . . . Triggered . | . . . Machines | -11 -10 -10 ---------- Run | Yrd Mat Sub Machines Disabled 2 | . 1 1 Max in Single Turn 1 | . 1 1 Machines Repaired . | . . . Machines Dismantled . | . . . Machines Sabotaged . | . . . Overloaded Fab Kills . | . . . Hacking | -11 -10 -10 --------- Run | Yrd Mat Sub Machines Accessed 9 | . 8 1 Terminals 6 | . 6 . Fabricators . | . . . Repair Stations . | . . . Recycling Units 2 | . 2 . Scanalyzers . | . . . Garrison Access . | . . . Total Hacks 20 | . 17 3 Successful 8 | . 5 3 Failed 11 | . 11 . Catastrophic 2 | . 2 . Database Lockouts 1 | . 1 . Manual 12 | . 12 . Terminals 14 | . 14 . Fabricators . | . . . Repair Stations . | . . . Recycling Units 3 | . 3 . Scanalyzers . | . . . Garrison Access . | . . . Terminal Hacks 5 | . 2 3 Record 3 | . . 3 Robot Analysis 1 | . 1 . Prototype ID Bank 1 | . 1 . Fabricator Hacks . | . . . Repair Station Hacks . | . . . Recycling Unit Hacks . | . . . Scanalyzer . | . . . Garrison Access Hacks . | . . . Unauthorized Hacks 3 | . 3 . Terminals 1 | . 1 . Botnet 1 | . 1 . Fabricators . | . . . Repair Stations . | . . . Recycling Units 2 | . 2 . Mask 2 | . 2 . Scanalyzers . | . . . Garrison Access . | . . . Data Cores Recovered . | . . . Used . | . . . Hacking Detections 6 | . 6 . Full Trace Events 1 | . 1 . Feedback Events . | . . . Feedback Blocked . | . . . Robot Schematics Acquired . | . . . Robots Built . | . . . Authchips . | . . . Time . | . . . Total Robot Build Rating . | . . . Part Schematics Acquired . | . . . Parts Built . | . . . Authchips . | . . . Time . | . . . Total Part Build Rating . | . . . Parts Repaired . | . . . Time . | . . . Parts Recycled . | . . . Recycled Matter . | . . . Retrieved Matter . | . . . Retrieved Components . | . . . Parts Scanalyzed . | . . . Part Schematics Acquired . | . . . Parts Damaged . | . . . Bothacking | -11 -10 -10 ------------ Run | Yrd Mat Sub Used RIF Installer . | . . . Robots Hacked . | . . . Non-combat . | . . . Combat . | . . . Robot Hacks Applied . | . . . Relay Couplers Released . | . . . Fabnet Peak Effective % . | . . . Robots Rewired . | . . . Allies Hacked . | . . . Hacks Repelled . | . . . Allies | -11 -10 -10 -------- Run | Yrd Mat Sub Total Allies . | . . . Largest Group . | . . . Highest-Rated Group . | . . . Highest-Rated Ally . | . . . Total Orders . | . . . Ally Attacks . | . . . Total Damage . | . . . Kills . | . . . Allies Corrupted . | . . . Allies Melted . | . . . Intel | -11 -10 -10 ------- Run | Yrd Mat Sub Robot Analysis Total 1 | . 1 . Derelict Logs Recovered 2 | . . 2 Drone Launches . | . . . Drone Recoveries . | . . . Exploration | -11 -10 -10 ------------- Run | Yrd Mat Sub Turns Passed 5448 | 93 1611 3744 Spaces Moved 2399 | 42 856 1501 Core . | . . . Treads 2122 | 27 856 1239 Legs 15 | 15 . . Wheels 262 | . . 262 Hover . | . . . Flight . | . . . Fastest Speed 120 | 120 160 160 Average Speed 177 | 145 160 187 Slowest Speed 610 | 160 240 610 Overloaded Moves . | . . . Propulsion Burnouts . | . . . Robots Hopped . | . . . Cave-ins Triggered . | . . . Exploration Rate (%) 61 | 4 100 81 Regions Visited 2 Branch Regions 1 Pre-discovered Areas 1 | . . 1 Known Exits Taken . | . . . Unknown Exits Taken 2 | 1 1 . Scrap Searched 5 | . . 5 Spaces Dug . | . . . Terrain Destroyed 36 | . 36 . Melee . | . . . Projectile . | . . . AOE 36 | . 36 . Terrain Rammed . | . . . Walls Destroyed . | . . . Machines Disabled . | . . . Actions | -11 -10 -10 --------- Run | Yrd Mat Sub Total 3258 | 57 1006 2195 Wait 576 | 1 50 525 Move 2397 | 41 855 1501 Hop . | . . . Pick Up 34 | . 20 14 Fast Attach 15 | 1 11 3 Attach 7 | 2 1 4 Detach . | . . . Swap 28 | . 10 18 Drop 34 | 3 12 19 Fire 161 | 9 47 105 Melee . | . . . Ram . | . . . Kick . | . . . Crush . | . . . Escape Stasis . | . . . Rewire . | . . . Trap . | . . . Miscellaneous 6 | . . 6 Route ------- -11/Scrapyard -10/Materials (discovered 6 exits: [*Mat x3] / [*Min x2] / *Sub) -10/Subcaves (discovered 3 exits: [*Mat x2] / *Rec) History --------- Turn | Location | Event 1 | -11/Scrapyard | Discovered new exit (range 3) 94 | -11/Scrapyard | Entered Materials 226 | -10/Materials | Central database locked down 306 | -10/Materials | Build established: Mutant 314 | -10/Materials | Discovered new exit (range 7) 733 | -10/Materials | Discovered new exit (range 10) 794 | -10/Materials | Discovered new exit (range 7) 860 | -10/Materials | Discovered new exit (range 16) 1113 | -10/Materials | Discovered new exit (range 13) 1698 | -10/Materials | Discovered new exit (range 5) 1705 | -10/Materials | Entered Subcaves 1800 | -10/Subcaves | Discovered new exit (range 11) 1809 | -10/Subcaves | Shifting Twisted Machinery released Shrapnel Trap 1810 | -10/Subcaves | Shifting Twisted Machinery released Sub. Monowheel 2268 | -10/Subcaves | Disturbed a concealed Subdweller 2960 | -10/Subcaves | A swath of the cavern ceiling suddenly collapsed 3187 | -10/Subcaves | Shifting Twisted Machinery released Flamer 3301 | -10/Subcaves | A swath of the cavern ceiling suddenly collapsed 3528 | -10/Subcaves | A Subdweller sparked back to life 3567 | -10/Subcaves | Found Prototype Flight Unit 3912 | -10/Subcaves | Learned location of Zion (-6) 3912 | -10/Subcaves | Met a Zionite searching for "candidates" 3985 | -10/Subcaves | Discovered new exit (range 6) 4075 | -10/Subcaves | Visited Clippyterm 4079 | -10/Subcaves | Identified exit to Recycling 4177 | -10/Subcaves | Learned Materials security intel 4198 | -10/Subcaves | Learned 2 Materials zone layouts 4240 | -10/Subcaves | Shifting Twisted Machinery released Sub. Machine Gun 4631 | -10/Subcaves | Build established: Hauler-Mutant 4757 | -10/Subcaves | Core integrity fell below 50% 5344 | -10/Subcaves | Core integrity fell below 20% 5449 | -10/Subcaves | Destroyed by 36-KYS(R) with Subdweller Laser Last Messages --------------- 04837_ Acquired 14 matter. 04864_ Acquired 11 matter. 04866_ Acquired 5 matter. 05063_ Sub. Power Source shoots sparks and powers down. 05105_ Acquired Wheel. 05106_ Acquired Lgt. Treads. 05109_ Acquired 25 matter. 05111_ Acquired 32 matter. 05116_ Dropped Spk. Treads. 05117_ Dropped Lgt. Treads. 05177_ Subatomizers dissect the Spk. Treads, destroying it. 05212_ ZD-3SZ(R) destroyed. 05214_ Acquired 6 matter. 05219_ Acquired Sub. Power Source. 05350_ Destroyed Scrap Shield. 05353_ W2-8TD(R) destroyed. 05356_ Acquired 18 matter. 05365_ Acquired Sub. Monowheel. 05426_ Sub. Power Source shoots sparks and powers down. 05434_ 36-KYS(R) suffers critical hit (Destroy). Map ----- +----------------------------------------------------+ | ????????????????????????????????????????????## ? | | ????????????????????????????????????????????# # | | ????????????????????????????????????????????# | | ??????????????????????????????????????? # # | | ?????????????????????????????????????? | | ?????????????????????????????????????? | | ???????????????????????????????????????? ### ## | | ??????????????????????????????????????????????# # | | ??????????????????????????????????????????????###? | | ?????????????????????????????????????????????????# | | ???????????? ##?????????????????????????????????# | | ???????????? #?????????????????????????#?##### | | ???????????? ????????????????# ### # # # | | ???????????? ???????????? $ | | ???????????? #??? ?????? | | ??????????? ???? ?????????# # ## # ## | | ???????????? #???# ##?????????????#??#??# | | ???????????? % ##?? #???????????????????# | | ?????????##?# ##? " #??????????????????## | | ????????## ## ##""%#??????????????????# | | ????????# """ #?????????????????## | | ????????# ??? %"" ##?????????????????# | | ????????# #?????# "" ##????????????????## | | ????????# #??????## #????????????????# | | ?????????# #?????#####R ##????????????????# | | ?????????# #??##### @ ##????????????????# | | ?????????# #?## ### #????????????????## | | ?????????## & ### ### #?????????????????# | | ??????????# ## ### #???????????????### | | ?????????## ##???????????????# % | | ?????????# #???????????????## | | ?????????###### ### ##???????????????# | | ??????????????# #### #????????????????# % # | | ??????????????# #### ##???????????????## ## | | ??????????????# ##### ##???????????????# ##? | | ?????????????# ???# #???????????????###?? | | ?????????????## ##??# #???????????????????? | | ?????????????## #??# #???????????????????? | | ?????????????# #??## #???????????????????? | | ?????????????# #???# # #???????????????????? | | ?????????????# ##???## ####???????????????????? | | ?????????????## ###### #?????????????????????? | | ????????###### ## ##?????????????????????? | | ????????# #??????????????????????? | | ????????# # # #?????????????????????? | | ????????#### #######?????????????????????? | | ???????????### #???????????????????????????? | | ????????????## ##??????????????????????????? | | ????????????# ##?????????????????????????? | | ????????????#### ####??????????????????????? | +----------------------------------------------------+ Best States ------------- Heat Dissipation 39 Energy Generation 15 Energy Capacity 250 Matter Stores 300 Matter Capacity 300 Sight Range 16 Terrain Scan Range 16 Terrain Scan Density 10 Armor Coverage 800 Evasion (%) 45 Recoil Reduction 2 Item Schematics ----------------- None Robot Schematics ------------------ None Fabricated ------------ Nothing Alien Tech Used ----------------- None Achievements -------------- None Challenges ------------ None Game ------ Seed AngularReflectiveInitializer Manual? 0 Play Time 00:27:15 Cumulative 141.5 hours Start 2024.09.21 @ 22:18:39 End 2024.09.21 @ 22:42:27 Sessions 1 Manual Loads 0 Difficulty Rogue Special Mode None Game No. 196 Rogue 196 Adventurer 0 Explorer 0 Win Type - Total 1 Types 1/0/0/0/0/0/0/0/0 Lore% 50 Gallery% 60 Achievement% 48 Wizard Run 0 Options --------- Layout 0 ASCII 0 Keyboard 0 Movement Mouse Keybinds 1 Fullscreen 1 Font 18/TerminusBold Map View 76x50 Zoom Use 0% Tactical HUD 1 Map Filters NONE Filters NONE Steam 1 RUN: 28e4b2cc-842e-4cd5-8fed-53c4d947a910